[Event "Titled Tuesday Blitz August 1 Early 2023"]
[White "Radzhabov, Rodion"]
[Black "Matyukov, Petr"]
[WhiteFideId "884715"]
[BlackFideId "4103688"]
[WhiteElo "2621"]
[BlackElo "2448"]
[Result "1-0"]
[Round "3"]
[TimeControl "180+1"]
[Date "2023.08.01"]
[WhiteClock "0:00:03"]
[BlackClock "0:00:00"]
[Board "120"]

1. e4 {[%clk 0:02:55]}  c6 {[%clk 0:03:00]} 2. Nc3 {[%clk 0:02:53]}  d5 {[%clk 0:03:00]} 3. Qe2 {[%clk 0:02:54]}  dxe4 {[%clk 0:02:56]} 4. Nxe4 {[%clk 0:02:50]}  Bf5 {[%clk 0:02:44]} 5. d3 {[%clk 0:02:50]}  e6 {[%clk 0:02:43]} 6. g4 {[%clk 0:02:50]}  Bg6 {[%clk 0:02:42]} 7. f4 {[%clk 0:02:49]}  Ne7 {[%clk 0:02:38]} 8. Nf3 {[%clk 0:02:43]}  Qc7 {[%clk 0:02:30]} 9. Bd2 {[%clk 0:02:30]}  Nd7 {[%clk 0:02:30]} 10. O-O-O {[%clk 0:02:30]}  O-O-O {[%clk 0:02:30]} 11. c4 {[%clk 0:01:39]}  h5 {[%clk 0:02:20]} 12. g5 {[%clk 0:01:33]}  Nf5 {[%clk 0:02:18]} 13. Bh3 {[%clk 0:01:06]}  Nc5 {[%clk 0:02:14]} 14. Nxc5 {[%clk 0:00:58]}  Bxc5 {[%clk 0:02:15]} 15. Ne5 {[%clk 0:00:44]}  Nd4 {[%clk 0:02:01]} 16. Qg2 {[%clk 0:00:39]}  Bf5 {[%clk 0:01:56]} 17. Bxf5 {[%clk 0:00:34]}  Nxf5 {[%clk 0:01:57]} 18. g6 {[%clk 0:00:32]}  fxg6 {[%clk 0:00:47]} 19. Qxg6 {[%clk 0:00:32]}  Rh6 {[%clk 0:00:45]} 20. Qf7 {[%clk 0:00:29]}  Rf8 {[%clk 0:00:27]} 21. Qxc7+ {[%clk 0:00:27]}  Kxc7 {[%clk 0:00:27]} 22. Rde1 {[%clk 0:00:22]}  Nd4 {[%clk 0:00:24]} 23. b4 {[%clk 0:00:19]}  Bd6 {[%clk 0:00:23]} 24. c5 {[%clk 0:00:17]}  Bxe5 {[%clk 0:00:23]} 25. Rxe5 {[%clk 0:00:18]}  Nf3 {[%clk 0:00:23]} 26. Re4 {[%clk 0:00:12]}  Nxd2 {[%clk 0:00:23]} 27. Kxd2 {[%clk 0:00:13]}  Rhf6 {[%clk 0:00:23]} 28. Ke3 {[%clk 0:00:13]}  Kd7 {[%clk 0:00:21]} 29. Rg1 {[%clk 0:00:13]}  R8f7 {[%clk 0:00:20]} 30. Rg5 {[%clk 0:00:14]}  Rf5 {[%clk 0:00:21]} 31. h4 {[%clk 0:00:11]}  Ke7 {[%clk 0:00:19]} 32. Rd4 {[%clk 0:00:08]}  Kf6 {[%clk 0:00:17]} 33. Rxf5+ {[%clk 0:00:06]}  Kxf5 {[%clk 0:00:17]} 34. Kf3 {[%clk 0:00:06]}  e5 {[%clk 0:00:15]} 35. Re4 {[%clk 0:00:05]}  exf4 {[%clk 0:00:14]} 36. Rxf4+ {[%clk 0:00:05]}  Ke6 {[%clk 0:00:15]} 37. Rxf7 {[%clk 0:00:05]}  Kxf7 {[%clk 0:00:16]} 38. Kf4 {[%clk 0:00:05]}  Kf6 {[%clk 0:00:16]} 39. a4 {[%clk 0:00:04]}  g6 {[%clk 0:00:07]} 40. d4 {[%clk 0:00:04]}  a6 {[%clk 0:00:07]} 41. a5 {[%clk 0:00:02]}  Ke6 {[%clk 0:00:06]} 42. Kg5 {[%clk 0:00:02]}  Kf7 {[%clk 0:00:03]} 43. d5 {[%clk 0:00:02]}  cxd5 {[%clk 0:00:03]} 44. b5 {[%clk 0:00:03]}  axb5 {[%clk 0:00:00]} 45. c6 {[%clk 0:00:03]} 1-0


[Site "https://www.chess.com"]

[Event "Titled Tuesday Blitz August 1 Early 2023"]
[White "Zeman, Matyas"]
[Black "Mamedov, Edgar"]
[WhiteFideId "364398"]
[BlackFideId "13739980"]
[WhiteElo "2447"]
[BlackElo "2620"]
[Result "0-1"]
[Round "3"]
[TimeControl "180+1"]
[Date "2023.08.01"]
[WhiteClock "0:01:18"]
[BlackClock "0:01:31"]
[Board "121"]

1. d4 {[%clk 0:03:00]}  d5 {[%clk 0:02:59]} 2. Nf3 {[%clk 0:03:00]}  Nf6 {[%clk 0:02:59]} 3. Bf4 {[%clk 0:02:57]}  e6 {[%clk 0:02:58]} 4. e3 {[%clk 0:02:56]}  Bd6 {[%clk 0:02:58]} 5. Bg3 {[%clk 0:02:55]}  O-O {[%clk 0:02:57]} 6. Nbd2 {[%clk 0:02:53]}  c5 {[%clk 0:02:57]} 7. c3 {[%clk 0:02:51]}  Nc6 {[%clk 0:02:52]} 8. Bd3 {[%clk 0:02:50]}  b6 {[%clk 0:02:47]} 9. e4 {[%clk 0:02:48]}  Be7 {[%clk 0:02:44]} 10. e5 {[%clk 0:02:47]}  Nh5 {[%clk 0:02:44]} 11. Ng5 {[%clk 0:02:47]}  Bxg5 {[%clk 0:02:43]} 12. Qxh5 {[%clk 0:02:47]}  g6 {[%clk 0:02:43]} 13. Qe2 {[%clk 0:02:27]}  cxd4 {[%clk 0:02:34]} 14. Nf3 {[%clk 0:02:25]}  dxc3 {[%clk 0:02:25]} 15. bxc3 {[%clk 0:02:26]}  Bh6 {[%clk 0:02:00]} 16. h4 {[%clk 0:02:19]}  f5 {[%clk 0:01:56]} 17. exf6 {[%clk 0:02:17]}  Qxf6 {[%clk 0:01:55]} 18. h5 {[%clk 0:02:14]}  Qxc3+ {[%clk 0:01:52]} 19. Kf1 {[%clk 0:02:10]}  Qxa1+ {[%clk 0:01:51]} 20. Ne1 {[%clk 0:02:11]}  g5 {[%clk 0:01:42]} 21. Bb5 {[%clk 0:02:08]}  Nd4 {[%clk 0:01:37]} 22. Qe5 {[%clk 0:02:03]}  Bg7 {[%clk 0:01:32]} 23. Qxg5 {[%clk 0:01:18]}  h6 {[%clk 0:01:31]} 0-1


[Site "https://www.chess.com"]

[Event "Titled Tuesday Blitz August 1 Early 2023"]
[White "Burmakin, Vladimir"]
[Black "Kashtanov, Ruslan"]
[WhiteFideId "4105109"]
[BlackFideId "4124871"]
[WhiteElo "2618"]
[BlackElo "2439"]
[Result "0-1"]
[Round "3"]
[TimeControl "180+1"]
[Date "2023.08.01"]
[WhiteClock "0:00:00"]
[BlackClock "0:00:03"]
[Board "123"]

1. c4 {[%clk 0:03:00]}  Nf6 {[%clk 0:02:54]} 2. g3 {[%clk 0:02:59]}  e6 {[%clk 0:02:49]} 3. Nf3 {[%clk 0:02:59]}  d5 {[%clk 0:02:48]} 4. Bg2 {[%clk 0:02:59]}  d4 {[%clk 0:02:43]} 5. O-O {[%clk 0:02:58]}  c5 {[%clk 0:02:40]} 6. e3 {[%clk 0:02:59]}  Nc6 {[%clk 0:02:40]} 7. exd4 {[%clk 0:02:59]}  cxd4 {[%clk 0:02:40]} 8. d3 {[%clk 0:02:58]}  Bd6 {[%clk 0:02:40]} 9. Bg5 {[%clk 0:02:57]}  h6 {[%clk 0:02:40]} 10. Bxf6 {[%clk 0:02:56]}  Qxf6 {[%clk 0:02:41]} 11. a3 {[%clk 0:02:56]}  a5 {[%clk 0:02:40]} 12. Nbd2 {[%clk 0:02:55]}  Qd8 {[%clk 0:02:40]} 13. Re1 {[%clk 0:02:51]}  e5 {[%clk 0:02:27]} 14. c5 {[%clk 0:02:50]}  Bc7 {[%clk 0:02:25]} 15. Nc4 {[%clk 0:02:49]}  f6 {[%clk 0:02:18]} 16. Nh4 {[%clk 0:01:50]}  O-O {[%clk 0:02:15]} 17. Be4 {[%clk 0:01:50]}  f5 {[%clk 0:02:00]} 18. Bxc6 {[%clk 0:01:49]}  bxc6 {[%clk 0:02:01]} 19. Nxe5 {[%clk 0:01:48]}  Qd5 {[%clk 0:02:01]} 20. Nhg6 {[%clk 0:01:43]}  Re8 {[%clk 0:01:46]} 21. Nxc6 {[%clk 0:01:42]}  Qxc6 {[%clk 0:01:44]} 22. Ne7+ {[%clk 0:01:20]}  Rxe7 {[%clk 0:01:43]} 23. Rxe7 {[%clk 0:01:21]}  Bb7 {[%clk 0:01:41]} 24. f3 {[%clk 0:01:21]}  Kf8 {[%clk 0:01:24]} 25. Re1 {[%clk 0:01:03]}  a4 {[%clk 0:01:18]} 26. Rc1 {[%clk 0:01:01]}  Rd8 {[%clk 0:01:08]} 27. Qe2 {[%clk 0:00:55]}  Qxf3 {[%clk 0:00:48]} 28. Qe7+ {[%clk 0:00:53]}  Kg8 {[%clk 0:00:47]} 29. c6 {[%clk 0:00:52]}  Bxg3 {[%clk 0:00:33]} 30. Qxd8+ {[%clk 0:00:23]}  Kh7 {[%clk 0:00:33]} 31. Qxd4 {[%clk 0:00:08]}  Bxc6 {[%clk 0:00:29]} 32. Rxc6 {[%clk 0:00:07]}  Bxe1 {[%clk 0:00:18]} 33. Rc2 {[%clk 0:00:06]}  Bh4 {[%clk 0:00:12]} 34. Qc3 {[%clk 0:00:03]}  Qe3+ {[%clk 0:00:10]} 35. Kf1 {[%clk 0:00:03]}  Qf3+ {[%clk 0:00:10]} 36. Kg1 {[%clk 0:00:03]}  Qe3+ {[%clk 0:00:10]} 37. Kf1 {[%clk 0:00:03]}  Bf6 {[%clk 0:00:10]} 38. Qd2 {[%clk 0:00:03]}  Qf3+ {[%clk 0:00:09]} 39. Qf2 {[%clk 0:00:02]}  Qxd3+ {[%clk 0:00:09]} 40. Re2 {[%clk 0:00:03]}  Qb1+ {[%clk 0:00:08]} 41. Kg2 {[%clk 0:00:03]}  h5 {[%clk 0:00:07]} 42. Qf3 {[%clk 0:00:03]}  Kh6 {[%clk 0:00:05]} 43. Rf2 {[%clk 0:00:02]}  g6 {[%clk 0:00:04]} 44. Qf4+ {[%clk 0:00:01]}  Bg5 {[%clk 0:00:04]} 45. Qd4 {[%clk 0:00:00]}  Qe1 {[%clk 0:00:03]} 0-1


[Site "https://www.chess.com"]

[Event "Titled Tuesday Blitz August 1 Early 2023"]
[White "Omorjan, Dejan"]
[Black "Vivas Zamora, Fabian Ernesto"]
[WhiteFideId "955345"]
[BlackFideId "3902480"]
[WhiteElo "2611"]
[BlackElo "2433"]
[Result "1-0"]
[Round "3"]
[TimeControl "180+1"]
[Date "2023.08.01"]
[WhiteClock "0:00:04"]
[BlackClock "0:00:00"]
[Board "126"]

1. d4 {[%clk 0:02:59]}  d5 {[%clk 0:02:57]} 2. Nf3 {[%clk 0:02:59]}  Nf6 {[%clk 0:02:55]} 3. e3 {[%clk 0:03:00]}  c5 {[%clk 0:02:50]} 4. dxc5 {[%clk 0:03:00]}  Nc6 {[%clk 0:02:40]} 5. a3 {[%clk 0:02:59]}  a5 {[%clk 0:02:38]} 6. c4 {[%clk 0:02:52]}  e6 {[%clk 0:02:27]} 7. Nc3 {[%clk 0:02:51]}  Bxc5 {[%clk 0:02:23]} 8. cxd5 {[%clk 0:02:48]}  exd5 {[%clk 0:02:24]} 9. Be2 {[%clk 0:02:48]}  O-O {[%clk 0:02:24]} 10. O-O {[%clk 0:02:47]}  Re8 {[%clk 0:02:13]} 11. Nb5 {[%clk 0:02:46]}  Bg4 {[%clk 0:02:04]} 12. Nfd4 {[%clk 0:01:54]}  Bxe2 {[%clk 0:01:50]} 13. Nxe2 {[%clk 0:01:55]}  Qb6 {[%clk 0:01:45]} 14. a4 {[%clk 0:01:48]}  Rad8 {[%clk 0:01:17]} 15. Ned4 {[%clk 0:01:43]}  Bxd4 {[%clk 0:01:10]} 16. exd4 {[%clk 0:01:44]}  Ne4 {[%clk 0:00:47]} 17. Bf4 {[%clk 0:01:40]}  Rd7 {[%clk 0:00:41]} 18. Re1 {[%clk 0:01:33]}  Rde7 {[%clk 0:00:37]} 19. f3 {[%clk 0:01:26]}  Nf6 {[%clk 0:00:35]} 20. Rxe7 {[%clk 0:01:10]}  Rxe7 {[%clk 0:00:36]} 21. Qd2 {[%clk 0:00:59]}  h6 {[%clk 0:00:33]} 22. Bd6 {[%clk 0:00:58]}  Re6 {[%clk 0:00:27]} 23. Bc7 {[%clk 0:00:51]}  Qa6 {[%clk 0:00:26]} 24. Re1 {[%clk 0:00:50]}  Rxe1+ {[%clk 0:00:13]} 25. Qxe1 {[%clk 0:00:51]}  Qa8 {[%clk 0:00:12]} 26. Nd6 {[%clk 0:00:42]}  Nxd4 {[%clk 0:00:10]} 27. Qxa5 {[%clk 0:00:18]}  Qxa5 {[%clk 0:00:09]} 28. Bxa5 {[%clk 0:00:19]}  Nb3 {[%clk 0:00:10]} 29. Bb4 {[%clk 0:00:17]}  b6 {[%clk 0:00:09]} 30. Nc8 {[%clk 0:00:16]}  Nd7 {[%clk 0:00:09]} 31. Kf2 {[%clk 0:00:15]}  Ndc5 {[%clk 0:00:05]} 32. Bxc5 {[%clk 0:00:06]}  bxc5 {[%clk 0:00:06]} 33. Ne7+ {[%clk 0:00:05]}  Kf8 {[%clk 0:00:06]} 34. Nxd5 {[%clk 0:00:06]}  Ke8 {[%clk 0:00:05]} 35. Ke2 {[%clk 0:00:06]}  Kd7 {[%clk 0:00:05]} 36. Kd3 {[%clk 0:00:06]}  Kc6 {[%clk 0:00:04]} 37. Nc3 {[%clk 0:00:07]}  Kb6 {[%clk 0:00:01]} 38. Kc4 {[%clk 0:00:07]}  Nd2+ {[%clk 0:00:01]} 39. Kd3 {[%clk 0:00:07]}  Nb3 {[%clk 0:00:01]} 40. h4 {[%clk 0:00:05]}  h5 {[%clk 0:00:00]} 41. Ne4 {[%clk 0:00:04]} 1-0


[Site "https://www.chess.com"]

[Event "Titled Tuesday Blitz August 1 Early 2023"]
[White "Ozates, Tuna"]
[Black "Pershina, Elena"]
[WhiteFideId "6354521"]
[BlackFideId "24147516"]
[WhiteElo "2611"]
[BlackElo "2432"]
[Result "1-0"]
[Round "3"]
[TimeControl "180+1"]
[Date "2023.08.01"]
[WhiteClock "0:00:07"]
[BlackClock "0:00:00"]
[Board "127"]

1. e4 {[%clk 0:02:58]}  c5 {[%clk 0:03:00]} 2. Nf3 {[%clk 0:02:56]}  Nc6 {[%clk 0:03:00]} 3. Nc3 {[%clk 0:02:52]}  e5 {[%clk 0:02:54]} 4. Bc4 {[%clk 0:02:51]}  Be7 {[%clk 0:02:52]} 5. d3 {[%clk 0:02:51]}  Nf6 {[%clk 0:02:49]} 6. Nd2 {[%clk 0:02:44]}  d6 {[%clk 0:02:44]} 7. Nf1 {[%clk 0:02:44]}  Be6 {[%clk 0:02:34]} 8. Ne3 {[%clk 0:02:23]}  O-O {[%clk 0:02:27]} 9. a3 {[%clk 0:02:19]}  Nd4 {[%clk 0:02:24]} 10. O-O {[%clk 0:02:19]}  a6 {[%clk 0:02:16]} 11. f4 {[%clk 0:02:18]}  b5 {[%clk 0:02:15]} 12. Bd5 {[%clk 0:02:17]}  Bxd5 {[%clk 0:02:13]} 13. Ncxd5 {[%clk 0:02:15]}  exf4 {[%clk 0:02:01]} 14. Rxf4 {[%clk 0:02:09]}  Ne6 {[%clk 0:01:47]} 15. Rf1 {[%clk 0:02:07]}  Nxd5 {[%clk 0:01:43]} 16. Nxd5 {[%clk 0:02:06]}  Bg5 {[%clk 0:01:42]} 17. a4 {[%clk 0:01:52]}  Bxc1 {[%clk 0:01:35]} 18. Qxc1 {[%clk 0:01:52]}  Qh4 {[%clk 0:01:33]} 19. g3 {[%clk 0:01:42]}  Qh3 {[%clk 0:01:16]} 20. Qe3 {[%clk 0:01:26]}  Nd4 {[%clk 0:01:00]} 21. Rf2 {[%clk 0:01:25]}  Rae8 {[%clk 0:00:44]} 22. axb5 {[%clk 0:01:21]}  axb5 {[%clk 0:00:43]} 23. c3 {[%clk 0:01:10]}  Ne6 {[%clk 0:00:37]} 24. Ra7 {[%clk 0:01:08]}  h5 {[%clk 0:00:25]} 25. Ne7+ {[%clk 0:00:56]}  Kh7 {[%clk 0:00:24]} 26. Nf5 {[%clk 0:00:56]}  Ra8 {[%clk 0:00:12]} 27. Rxa8 {[%clk 0:00:49]}  Rxa8 {[%clk 0:00:12]} 28. Rf1 {[%clk 0:00:47]}  Ra2 {[%clk 0:00:11]} 29. Qf2 {[%clk 0:00:36]}  Ng5 {[%clk 0:00:09]} 30. Nh4 {[%clk 0:00:15]}  Qg4 {[%clk 0:00:09]} 31. Qd2 {[%clk 0:00:08]}  Nh3+ {[%clk 0:00:08]} 32. Kg2 {[%clk 0:00:07]}  Ng5 {[%clk 0:00:08]} 33. Nf3 {[%clk 0:00:06]}  Qh3+ {[%clk 0:00:07]} 34. Kg1 {[%clk 0:00:06]}  Nxf3+ {[%clk 0:00:06]} 35. Rxf3 {[%clk 0:00:06]}  Ra1+ {[%clk 0:00:06]} 36. Kf2 {[%clk 0:00:07]}  Qf1+ {[%clk 0:00:04]} 37. Ke3 {[%clk 0:00:06]}  Re1+ {[%clk 0:00:04]} 38. Kf4 {[%clk 0:00:06]}  Qg1 {[%clk 0:00:03]} 39. Kg5 {[%clk 0:00:06]}  Rf1 {[%clk 0:00:02]} 40. Qf4 {[%clk 0:00:06]}  f6+ {[%clk 0:00:02]} 41. Kf5 {[%clk 0:00:05]}  Rxf3 {[%clk 0:00:01]} 42. Qxf3 {[%clk 0:00:06]}  Qxh2 {[%clk 0:00:01]} 43. Ke6 {[%clk 0:00:06]}  Qh3+ {[%clk 0:00:01]} 44. Kxd6 {[%clk 0:00:06]}  h4 {[%clk 0:00:01]} 45. Qh5+ {[%clk 0:00:06]}  Kg8 {[%clk 0:00:00]} 46. Qxh4 {[%clk 0:00:07]} 1-0


[Site "https://www.chess.com"]

[Event "Titled Tuesday Blitz August 1 Early 2023"]
[White "Urbina Perez, Juan Antonio"]
[Black "brm72"]
[WhiteFideId "2217368"]
[WhiteElo "2432"]
[BlackElo "2609"]
[Result "1-0"]
[Round "3"]
[TimeControl "180+1"]
[Date "2023.08.01"]
[WhiteClock "0:02:14"]
[BlackClock "0:01:37"]
[Board "128"]

1. d4 {[%clk 0:03:00]}  Nf6 {[%clk 0:03:00]} 2. c4 {[%clk 0:03:00]}  g6 {[%clk 0:03:00]} 3. Nf3 {[%clk 0:02:58]}  Bg7 {[%clk 0:03:00]} 4. g3 {[%clk 0:02:57]}  O-O {[%clk 0:03:00]} 5. Bg2 {[%clk 0:02:56]}  c6 {[%clk 0:03:01]} 6. O-O {[%clk 0:02:53]}  d5 {[%clk 0:03:01]} 7. cxd5 {[%clk 0:02:52]}  cxd5 {[%clk 0:03:02]} 8. Ne5 {[%clk 0:02:49]}  Ng4 {[%clk 0:03:02]} 9. Nxg4 {[%clk 0:02:41]}  Bxg4 {[%clk 0:03:03]} 10. h3 {[%clk 0:02:41]}  Be6 {[%clk 0:02:59]} 11. Nc3 {[%clk 0:02:40]}  Nc6 {[%clk 0:02:58]} 12. Qb3 {[%clk 0:02:40]}  Nxd4 {[%clk 0:02:27]} 13. Qxb7 {[%clk 0:02:32]}  Qa5 {[%clk 0:01:53]} 14. Nxd5 {[%clk 0:02:23]}  Nxe2+ {[%clk 0:01:50]} 15. Kh2 {[%clk 0:02:20]}  Bxd5 {[%clk 0:01:45]} 16. Qxd5 {[%clk 0:02:21]}  Nxc1 {[%clk 0:01:37]} 17. Qxa5 {[%clk 0:02:14]} 1-0


[Site "https://www.chess.com"]

[Event "Titled Tuesday Blitz August 1 Early 2023"]
[White "vishwa_vijeta"]
[Black "Manukian, Artak"]
[BlackFideId "13301373"]
[WhiteElo "2605"]
[BlackElo "2428"]
[Result "0-1"]
[Round "3"]
[TimeControl "180+1"]
[Date "2023.08.01"]
[WhiteClock "0:00:11"]
[BlackClock "0:00:37"]
[Board "130"]

1. e4 {[%clk 0:03:00]}  c6 {[%clk 0:02:18]} 2. d4 {[%clk 0:02:59]}  d5 {[%clk 0:02:19]} 3. Nd2 {[%clk 0:03:00]}  dxe4 {[%clk 0:02:19]} 4. Nxe4 {[%clk 0:03:00]}  Nf6 {[%clk 0:02:20]} 5. Nxf6+ {[%clk 0:02:58]}  exf6 {[%clk 0:02:21]} 6. Nf3 {[%clk 0:02:58]}  Bd6 {[%clk 0:02:22]} 7. Bd3 {[%clk 0:02:59]}  O-O {[%clk 0:02:22]} 8. O-O {[%clk 0:02:59]}  Bg4 {[%clk 0:02:23]} 9. c3 {[%clk 0:02:59]}  Qc7 {[%clk 0:02:22]} 10. h3 {[%clk 0:02:59]}  Bh5 {[%clk 0:02:22]} 11. Be2 {[%clk 0:02:55]}  Re8 {[%clk 0:02:22]} 12. Re1 {[%clk 0:02:54]}  Nd7 {[%clk 0:02:21]} 13. Be3 {[%clk 0:02:51]}  Bf4 {[%clk 0:02:20]} 14. Bxf4 {[%clk 0:02:36]}  Qxf4 {[%clk 0:02:21]} 15. g3 {[%clk 0:02:35]}  Qd6 {[%clk 0:02:14]} 16. Nd2 {[%clk 0:02:34]}  Bg6 {[%clk 0:02:09]} 17. Bf3 {[%clk 0:02:30]}  Nb6 {[%clk 0:02:04]} 18. Ne4 {[%clk 0:02:20]}  Bxe4 {[%clk 0:02:03]} 19. Bxe4 {[%clk 0:02:20]}  g6 {[%clk 0:02:01]} 20. Qf3 {[%clk 0:02:17]}  f5 {[%clk 0:01:59]} 21. Bc2 {[%clk 0:02:17]}  Qd5 {[%clk 0:01:58]} 22. Qxd5 {[%clk 0:02:16]}  Nxd5 {[%clk 0:01:57]} 23. Bb3 {[%clk 0:02:16]}  Kf8 {[%clk 0:01:56]} 24. Kg2 {[%clk 0:02:16]}  Nf6 {[%clk 0:01:55]} 25. Rad1 {[%clk 0:02:09]}  Rxe1 {[%clk 0:01:54]} 26. Rxe1 {[%clk 0:02:09]}  Re8 {[%clk 0:01:54]} 27. Rxe8+ {[%clk 0:02:05]}  Kxe8 {[%clk 0:01:55]} 28. Kf3 {[%clk 0:02:05]}  Ke7 {[%clk 0:01:53]} 29. Kf4 {[%clk 0:01:56]}  h6 {[%clk 0:01:53]} 30. f3 {[%clk 0:01:55]}  Nh5+ {[%clk 0:01:53]} 31. Ke3 {[%clk 0:01:48]}  Nxg3 {[%clk 0:01:53]} 32. d5 {[%clk 0:01:44]}  g5 {[%clk 0:01:46]} 33. dxc6 {[%clk 0:01:40]}  bxc6 {[%clk 0:01:45]} 34. f4 {[%clk 0:01:40]}  Ne4 {[%clk 0:01:39]} 35. Bc2 {[%clk 0:01:39]}  Nd6 {[%clk 0:01:39]} 36. Bd3 {[%clk 0:01:30]}  Kf6 {[%clk 0:01:38]} 37. Kf3 {[%clk 0:01:30]}  c5 {[%clk 0:01:35]} 38. c4 {[%clk 0:01:29]}  Ne8 {[%clk 0:01:32]} 39. a3 {[%clk 0:01:12]}  a5 {[%clk 0:01:30]} 40. Kg3 {[%clk 0:00:51]}  Nc7 {[%clk 0:01:30]} 41. h4 {[%clk 0:00:52]}  Ne6 {[%clk 0:01:25]} 42. hxg5+ {[%clk 0:00:51]}  hxg5 {[%clk 0:01:26]} 43. fxg5+ {[%clk 0:00:52]}  Kxg5 {[%clk 0:01:27]} 44. Kf3 {[%clk 0:00:51]}  Nd4+ {[%clk 0:01:24]} 45. Ke3 {[%clk 0:00:48]}  Nc6 {[%clk 0:01:16]} 46. Be2 {[%clk 0:00:43]}  Ne5 {[%clk 0:01:13]} 47. b3 {[%clk 0:00:34]}  f6 {[%clk 0:01:12]} 48. Bd1 {[%clk 0:00:33]}  f4+ {[%clk 0:01:07]} 49. Ke4 {[%clk 0:00:33]}  f3 {[%clk 0:01:07]} 50. Kd5 {[%clk 0:00:25]}  f2 {[%clk 0:01:05]} 51. Be2 {[%clk 0:00:25]}  Kf4 {[%clk 0:01:00]} 52. Kxc5 {[%clk 0:00:23]}  Ke3 {[%clk 0:00:56]} 53. Bf1 {[%clk 0:00:23]}  Nf3 {[%clk 0:00:47]} 54. Kd5 {[%clk 0:00:19]}  Nh2 {[%clk 0:00:47]} 55. Bg2 {[%clk 0:00:19]}  Kf4 {[%clk 0:00:47]} 56. c5 {[%clk 0:00:16]}  Kg3 {[%clk 0:00:48]} 57. c6 {[%clk 0:00:15]}  Kxg2 {[%clk 0:00:48]} 58. c7 {[%clk 0:00:15]}  f1=Q {[%clk 0:00:49]} 59. c8=Q {[%clk 0:00:16]}  Qf3+ {[%clk 0:00:48]} 60. Kd6 {[%clk 0:00:15]}  Qxb3 {[%clk 0:00:44]} 61. Qc6+ {[%clk 0:00:14]}  Nf3 {[%clk 0:00:42]} 62. Qc5 {[%clk 0:00:12]}  a4 {[%clk 0:00:41]} 63. Ke7 {[%clk 0:00:11]}  f5 {[%clk 0:00:38]} 64. Kf6 {[%clk 0:00:09]}  f4 {[%clk 0:00:39]} 65. Kf5 {[%clk 0:00:09]}  Qe3 {[%clk 0:00:37]} 66. Qc2+ {[%clk 0:00:08]}  Kg3 {[%clk 0:00:37]} 67. Qxa4 {[%clk 0:00:08]}  Nd4+ {[%clk 0:00:37]} 68. Kf6 {[%clk 0:00:08]}  f3 {[%clk 0:00:37]} 69. Qxd4 {[%clk 0:00:09]}  Qxd4+ {[%clk 0:00:37]} 70. Kf7 {[%clk 0:00:09]}  f2 {[%clk 0:00:38]} 71. Kg8 {[%clk 0:00:10]}  f1=Q {[%clk 0:00:38]} 72. a4 {[%clk 0:00:11]}  Qd8+ {[%clk 0:00:37]} 73. Kh7 {[%clk 0:00:11]}  Qf5+ {[%clk 0:00:37]} 74. Kh6 {[%clk 0:00:11]}  Qdf6# {[%clk 0:00:37]} 0-1


[Site "https://www.chess.com"]

[Event "Titled Tuesday Blitz August 1 Early 2023"]
[White "Cheer_Down"]
[Black "Vaibhav Jayant Raut"]
[BlackFideId "5089034"]
[WhiteElo "2424"]
[BlackElo "2597"]
[Result "0-1"]
[Round "3"]
[TimeControl "180+1"]
[Date "2023.08.01"]
[WhiteClock "0:00:21"]
[BlackClock "0:00:50"]
[Board "133"]

1. e4 {[%clk 0:02:55]}  c5 {[%clk 0:02:58]} 2. Nf3 {[%clk 0:02:55]}  d6 {[%clk 0:02:59]} 3. Bb5+ {[%clk 0:02:55]}  Bd7 {[%clk 0:02:58]} 4. c4 {[%clk 0:02:53]}  Nf6 {[%clk 0:02:58]} 5. Nc3 {[%clk 0:02:53]}  e6 {[%clk 0:02:59]} 6. O-O {[%clk 0:02:52]}  Be7 {[%clk 0:02:58]} 7. d4 {[%clk 0:02:52]}  cxd4 {[%clk 0:02:57]} 8. Nxd4 {[%clk 0:02:52]}  O-O {[%clk 0:02:58]} 9. Be3 {[%clk 0:02:49]}  a6 {[%clk 0:02:56]} 10. Ba4 {[%clk 0:02:44]}  Bxa4 {[%clk 0:02:53]} 11. Qxa4 {[%clk 0:02:43]}  Nbd7 {[%clk 0:02:54]} 12. f3 {[%clk 0:02:42]}  Rc8 {[%clk 0:02:46]} 13. Qb3 {[%clk 0:02:20]}  Qc7 {[%clk 0:02:41]} 14. Rac1 {[%clk 0:02:18]}  Ne5 {[%clk 0:02:35]} 15. Na4 {[%clk 0:01:58]}  Nfd7 {[%clk 0:02:31]} 16. c5 {[%clk 0:01:10]}  Nxc5 {[%clk 0:02:25]} 17. Nxc5 {[%clk 0:01:09]}  dxc5 {[%clk 0:02:26]} 18. Ne2 {[%clk 0:01:06]}  Rfd8 {[%clk 0:02:21]} 19. Rfd1 {[%clk 0:01:05]}  b5 {[%clk 0:02:09]} 20. Qc2 {[%clk 0:01:01]}  c4 {[%clk 0:02:06]} 21. b3 {[%clk 0:00:52]}  Ba3 {[%clk 0:01:59]} 22. Rxd8+ {[%clk 0:00:52]}  Rxd8 {[%clk 0:01:57]} 23. Rd1 {[%clk 0:00:53]}  Rd3 {[%clk 0:01:53]} 24. Bf4 {[%clk 0:00:48]}  Qc5+ {[%clk 0:01:49]} 25. Kf1 {[%clk 0:00:46]}  Rxd1+ {[%clk 0:01:36]} 26. Qxd1 {[%clk 0:00:45]}  Nd3 {[%clk 0:01:37]} 27. Bg3 {[%clk 0:00:44]}  h5 {[%clk 0:01:30]} 28. Nf4 {[%clk 0:00:43]}  Nxf4 {[%clk 0:01:23]} 29. Bxf4 {[%clk 0:00:38]}  c3 {[%clk 0:01:23]} 30. Qd8+ {[%clk 0:00:28]}  Kh7 {[%clk 0:01:22]} 31. Qe8 {[%clk 0:00:27]}  c2 {[%clk 0:01:12]} 32. Qxf7 {[%clk 0:00:25]}  c1=Q+ {[%clk 0:01:09]} 33. Bxc1 {[%clk 0:00:26]}  Qxc1+ {[%clk 0:01:10]} 34. Ke2 {[%clk 0:00:26]}  Qc2+ {[%clk 0:01:09]} 35. Ke3 {[%clk 0:00:25]}  Bc5+ {[%clk 0:01:00]} 36. Kf4 {[%clk 0:00:24]}  Qd2+ {[%clk 0:00:58]} 37. Kg3 {[%clk 0:00:22]}  Qg5+ {[%clk 0:00:56]} 38. Kh3 {[%clk 0:00:22]}  Be7 {[%clk 0:00:50]} 39. Qxe6 {[%clk 0:00:21]}  Qh4# {[%clk 0:00:50]} 0-1


[Site "https://www.chess.com"]

[Event "Titled Tuesday Blitz August 1 Early 2023"]
[White "Shukhman, Anna"]
[Black "Titichoca Daza, Daniel"]
[WhiteFideId "54180058"]
[BlackFideId "3309550"]
[WhiteElo "2596"]
[BlackElo "2423"]
[Result "1-0"]
[Round "3"]
[TimeControl "180+1"]
[Date "2023.08.01"]
[WhiteClock "0:02:08"]
[BlackClock "0:00:43"]
[Board "134"]

1. e4 {[%clk 0:03:00]}  e5 {[%clk 0:02:36]} 2. Nf3 {[%clk 0:02:59]}  Nc6 {[%clk 0:02:36]} 3. Bb5 {[%clk 0:02:59]}  Nf6 {[%clk 0:02:34]} 4. d3 {[%clk 0:02:57]}  d6 {[%clk 0:01:30]} 5. O-O {[%clk 0:02:54]}  Bd7 {[%clk 0:01:30]} 6. Nc3 {[%clk 0:02:53]}  g6 {[%clk 0:01:30]} 7. d4 {[%clk 0:02:53]}  exd4 {[%clk 0:01:29]} 8. Nxd4 {[%clk 0:02:50]}  Bg7 {[%clk 0:01:29]} 9. Re1 {[%clk 0:02:45]}  O-O {[%clk 0:01:28]} 10. Nxc6 {[%clk 0:02:40]}  bxc6 {[%clk 0:01:29]} 11. Bf1 {[%clk 0:02:38]}  Re8 {[%clk 0:01:28]} 12. Bg5 {[%clk 0:02:35]}  h6 {[%clk 0:01:28]} 13. Bh4 {[%clk 0:02:35]}  g5 {[%clk 0:01:28]} 14. Bg3 {[%clk 0:02:35]}  Rb8 {[%clk 0:01:29]} 15. e5 {[%clk 0:02:34]}  dxe5 {[%clk 0:01:25]} 16. Bxe5 {[%clk 0:02:31]}  Rxb2 {[%clk 0:01:22]} 17. Qf3 {[%clk 0:02:30]}  Rxe5 {[%clk 0:01:15]} 18. Rxe5 {[%clk 0:02:28]}  Nd5 {[%clk 0:01:16]} 19. Nxd5 {[%clk 0:02:13]}  Bxe5 {[%clk 0:01:13]} 20. Re1 {[%clk 0:02:12]}  Bg7 {[%clk 0:00:49]} 21. Ne7+ {[%clk 0:02:10]}  Kh8 {[%clk 0:00:43]} 22. Qxf7 {[%clk 0:02:08]} 1-0


[Site "https://www.chess.com"]